Cogmind - Beta 15 @@@ ROGUE MODE // 2025.05.19 @ 20:21:53 Player: jumpy Result: Destroyed by NS-NX0(R) with Subdweller Laser Performance ------------- Evolutions (0) 0 Regions Visited (2) 400 Robots Destroyed (17) 85 Value Destroyed (351) 351 Prototype IDs (0) 0 Alien Tech Used (0) 0 Bonus (0) 0 TOTAL SCORE: 836 Bonus ------- None Cogmind --------- Core Integrity 0/250 Matter 219/300 Energy 200/200 System Corruption 2% Temperature Cool (6) Movement Core (500) Ox9 Location -10/Subcaves Parts ------- > --- POWER (1) -------- Subdweller Power Source > --- PROPULSION (2) --- (None) > --- UTILITY (2) ------ Large Storage Unit > --- WEAPON (2) ------- Subdweller Laser > --- INVENTORY (15) --- Improved Terrain Scanner Peak State ------------ > --- POWER ------------ Ion Engine > --- PROPULSION ------- Light Treads Light Treads > --- UTILITY ---------- Large Storage Unit Seismic Detector > --- WEAPON ----------- Assault Rifle Heavy Assault Rifle > --- INVENTORY -------- Light Ion Engine Wheel Compact Wheel Improved Terrain Scanner Assault Rifle Light Assault Rifle [Rating: 8] Favorites ----------- Power Ion Engine Engine Ion Engine Propulsion Light Treads Treads Light Treads Wheel Compact Wheel Utility Large Storage Unit Device Seismic Detector Storage Large Storage Unit Weapon Assault Rifle Energy Gun Subdweller Laser Ballistic Gun Assault Rifle Build | -11 -10 -10 ------- Run | Yrd Mat Sub Slots Evolved . | . . . Power . | . . . Propulsion . | . . . Utility . | . . . Weapon . | . . . Parts Attached 16 | 9 1 6 Power 3 | 2 . 1 Engine 3 | 2 . 1 Core . | . . . Reactor . | . . . Propulsion 4 | 2 . 2 Treads 2 | 2 . . Leg . | . . . Wheel 2 | . . 2 Hover . | . . . Flight . | . . . Utility 4 | 2 1 1 Device 2 | 1 . 1 Storage 2 | 1 1 . Processor . | . . . Hackware . | . . . Protection . | . . . Artifact . | . . . Weapon 5 | 3 . 2 Energy Gun 1 | . . 1 Energy Cannon . | . . . Ballistic Gun 4 | 3 . 1 Ballistic Cannon . | . . . Launcher . | . . . Special Weapon . | . . . Impact Weapon . | . . . Slashing Weapon . | . . . Piercing Weapon . | . . . Special Melee Weapon . | . . . Unidentified Prototypes . | . . . Parts Lost 12 | . . 12 Power 2 | . . 2 Propulsion 4 | . . 4 Utility 2 | . . 2 Weapon 4 | . . 4 Highest Loss Streak 8 | . . 8 To Critical Strikes . | . . . Average Backups 4 | 3 6 3 Power . | . 1 . Propulsion 1 | 1 2 1 Utility 1 | . 2 1 Weapon . | . 1 . Tool/Special . | . . . Unused Backups 1 | . . 1 Power . | . . . Propulsion . | . . . Utility 1 | . . 1 Weapon . | . . . Tool/Special . | . . . Average Slot Usage (%) 85 | . 100 77 Engine 12 | . 14 11 Treads 18 | . 28 12 Wheel 2 | . . 4 Device 9 | . 14 7 Storage 14 | . 14 14 Energy Gun 4 | . . 6 Ballistic Gun 22 | . 28 20 Peak Build Rating 8 | 7 7 8 Average Rating 6 | 5 7 6 On Entrance 4 | . 7 7 Naked Turns . | . . . Heaviest Build 31 | 15 30 31 Greatest Support 40 | 40 40 40 Greatest Overweight (x) 9 | . . 9 Average Overweight (x) . | . . 1 Largest Inventory Capacity 15 | 8 15 15 Average Capacity 12 | 7 12 15 Most Carried 7 | 6 7 6 Average Carried 4 | 3 6 3 Final Capacity 15 | 8 15 15 Final Carried 6 | 6 6 1 Class Distribution -------------------- 100% | Mutant Dominant Class ---------------- Mutant | -10/Materials Mutant | -10/Subcaves Resources | -11 -10 -10 ----------- Run | Yrd Mat Sub Matter Collected 518 | 314 70 134 Remotely . | . . . Salvage Created 556 | 156 92 308 Parts 45 | 17 10 18 Haulers Intercepted . | . . . Recyclers Shooed . | . . . Parts Field Recycled . | . . . Retrieved Matter . | . . . Parts Self-Destructed 5 | . . 5 Prevented . | . . . Kills | -11 -10 -10 ------- Run | Yrd Mat Sub Combat Hostiles Destroyed 10 | . 4 6 Guns 10 | . 4 6 Classes Destroyed 6 | 2 2 2 Tunneler 6 | 6 . . Recycler 1 | 1 . . Swarmer 3 | . 3 . Grunt 2 | . 1 1 Sentry 1 | . . 1 Subdweller 4 | . . 4 Best Kill Streak 3 | 2 3 2 Combat Bots Only 3 | . 3 2 Max Kills in Single Turn 1 | 1 1 1 Gunslinging . | . . . Exploded . | . . . Melee . | . . . Uniques/NPCs Destroyed . | . . . Combat | -11 -10 -10 -------- Run | Yrd Mat Sub Hostile Shots Fired 102 | . 16 86 Missed 28 | . 2 26 Hits 74 | . 14 60 Projectile 74 | . 14 60 Critical Strikes 2 | . . 2 Damage Taken 1380 | . 124 1256 Core 263 | . 10 253 Absorbed by Shields . | . . . Core Remaining (%) 100 | 100 . . Volleys Fired 66 | 11 9 46 Largest 2 | 2 2 2 Hottest 80 | 40 40 80 Shots Fired 113 | 22 18 73 Gun 113 | 22 18 73 Cannon . | . . . Launcher . | . . . Special . | . . . Kinetic 107 | 22 18 67 Thermal 6 | . . 6 Explosive . | . . . Electromagnetic . | . . . Robot Hit Streak 20 | 5 7 20 Robot Miss Streak 2 | 1 1 2 Penetration Max . | . . . Secondary Targets . | . . . Shots Hit Robots 76 | 13 11 52 Core Hits 28 | 8 5 15 Critical Kills . | . . . Critical Parts Destroyed . | . . . Critical Strikes . | . . . Melee Attacks . | . . . Impact . | . . . Slashing . | . . . Piercing . | . . . Sneak Attacks . | . . . Combat Hostiles . | . . . Follow-up Attacks . | . . . Damage Inflicted 957 | 165 144 648 Guns 947 | 165 137 645 Cannons . | . . . Explosions . | . . . Melee . | . . . Ramming 10 | . 7 3 Kinetic 882 | 165 137 580 Thermal 65 | . . 65 Explosive . | . . . Electromagnetic . | . . . Impact . | . . . Slashing . | . . . Piercing . | . . . Highest Corruption 2 | . 2 2 Average Corruption 1 | . 1 2 Corruption Purged . | . . . Corruption Blocked . | . . . Effects 9 | . 1 8 Message Errors 2 | . 1 1 Matter Fused 1 | . . 1 Heat Flow Errors 1 | . . 1 Energy Discharges 1 | . . 1 Misfires 1 | . . 1 Alerts 2 | . . 2 Weapon Failures 1 | . . 1 Overload Shots . | . . . Overflow Damage . | . . . Projectiles . | . . . Explosions . | . . . Melee . | . . . Knockbacks 1 | . . 1 Impact 1 | . . 1 Kinetic . | . . . Secondary . | . . . Self-Inflicted Damage . | . . . Shots . | . . . Rammed 3 | . 2 1 Targets Rammed 3 | . 2 1 Kicked . | . . . Crushed . | . . . Highest Temperature 103 | . . 103 Average Temperature 33 | . . 33 Received Heat Transfer 348 | . 30 318 Siege Activations . | . . . Martial Activations . | . . . Shielding Activations . | . . . Robots Disrupted . | . . . Combat Hostiles . | . . . Robots Corrupted . | . . . Combat Hostiles . | . . . Parts Fried . | . . . Impact Corruptions . | . . . Robots Melted . | . . . Combat Hostiles . | . . . Parts Melted 2 | . . 2 Heat Transferred 75 | . . 75 Parts Sabotaged . | . . . Parts Stolen . | . . . Parts Stripped . | . . . Power Chain Reactions . | . . . Alert | -11 -10 -10 ------- Run | Yrd Mat Sub Maximum Alert Level . | . . . Low Security (%) 100 | 100 100 . Level 1 . | . . . Level 2 . | . . . Level 3 . | . . . Level 4 . | . . . Level 5 . | . . . High Security . | . . . Max Security . | . . . Peak Influence 82 | 10 82 . Initial . | . . . Average 14 | 1 26 . Influence Increases 182 | 35 107 40 Destroy 0b10 Robot/C 120 | . 80 40 Destroy 0b10 Robot/NC 35 | 35 . . Destroy Leader 20 | . 20 . Successful Hack 5 | . 5 . Destroy Structure 2 | . 2 . Influence Decreases 182 | 35 50 97 Entered New Map 28 | . . 28 Time Decay 144 | 35 50 59 Lost Part 10 | . . 10 Squads Dispatched 1 | . 1 . Investigation 1 | . 1 . Extermination . | . . . Reinforcement . | . . . Assault . | . . . Garrison . | . . . Intercept . | . . . Searches Triggered . | . . . Construction Impeded . | . . . Haulers Reinforced . | . . . Active Scanning Responses . | . . . Cargo Convoy Interrupts . | . . . Stealth | -11 -10 -10 --------- Run | Yrd Mat Sub Distress Signals . | . . . Communications Jammed . | . . . Distress Signals . | . . . Times Spotted 13 | . 5 8 Peak Tracking Total 3 | . 3 2 Tactical Retreats . | . . . Traps | -11 -10 -10 ------- Run | Yrd Mat Sub Traps Triggered 6 | . 3 3 Indirectly . | . . . Trap Hack Attempts . | . . . Triggered . | . . . Disarmed . | . . . Reprogrammed . | . . . Reused . | . . . Traps Extracted . | . . . Installed . | . . . Triggered . | . . . Machines | -11 -10 -10 ---------- Run | Yrd Mat Sub Machines Disabled . | . . . Max in Single Turn . | . . . Machines Repaired . | . . . Machines Dismantled . | . . . Machines Sabotaged . | . . . Overloaded Fab Kills . | . . . Hacking | -11 -10 -10 --------- Run | Yrd Mat Sub Machines Accessed 1 | . 1 . Terminals 1 | . 1 . Fabricators . | . . . Repair Stations . | . . . Recycling Units . | . . . Scanalyzers . | . . . Garrison Access . | . . . Total Hacks 2 | . 2 . Successful 1 | . 1 . Failed 1 | . 1 . Catastrophic . | . . . Database Lockouts . | . . . Manual . | . . . Terminals 2 | . 2 . Fabricators . | . . . Repair Stations . | . . . Recycling Units . | . . . Scanalyzers . | . . . Garrison Access . | . . . Terminal Hacks 1 | . 1 . Robot Analysis 1 | . 1 . Fabricator Hacks . | . . . Repair Station Hacks . | . . . Recycling Unit Hacks . | . . . Scanalyzer . | . . . Garrison Access Hacks . | . . . Unauthorized Hacks . | . . . Terminals . | . . . Fabricators . | . . . Repair Stations . | . . . Recycling Units . | . . . Scanalyzers . | . . . Garrison Access . | . . . Data Cores Recovered . | . . . Used . | . . . Hacking Detections . | . . . Full Trace Events . | . . . Feedback Events . | . . . Feedback Blocked . | . . . Robot Schematics Acquired . | . . . Robots Built . | . . . Authchips . | . . . Time . | . . . Total Robot Build Rating . | . . . Part Schematics Acquired . | . . . Parts Built . | . . . Authchips . | . . . Time . | . . . Total Part Build Rating . | . . . Parts Repaired . | . . . Time . | . . . Parts Recycled . | . . . Recycled Matter . | . . . Retrieved Matter . | . . . Retrieved Components . | . . . Parts Scanalyzed . | . . . Part Schematics Acquired . | . . . Parts Damaged . | . . . Bothacking | -11 -10 -10 ------------ Run | Yrd Mat Sub Used RIF Installer . | . . . Robots Hacked . | . . . Non-combat . | . . . Combat . | . . . Robot Hacks Applied . | . . . Relay Couplers Released . | . . . Fabnet Peak Effective % . | . . . Robots Rewired . | . . . Allies Hacked . | . . . Hacks Repelled . | . . . Allies | -11 -10 -10 -------- Run | Yrd Mat Sub Total Allies . | . . . Largest Group . | . . . Highest-Rated Group . | . . . Highest-Rated Ally . | . . . Total Orders . | . . . Ally Attacks . | . . . Total Damage . | . . . Kills . | . . . Allies Corrupted . | . . . Allies Melted . | . . . Intel | -11 -10 -10 ------- Run | Yrd Mat Sub Active Infowar (turns) 584 | 79 257 248 Seismic 584 | 79 257 248 Robot Analysis Total 1 | . 1 . Derelict Logs Recovered . | . . . Drone Launches . | . . . Drone Recoveries . | . . . Exploration | -11 -10 -10 ------------- Run | Yrd Mat Sub Turns Passed 969 | 225 257 487 Spaces Moved 465 | 120 133 212 Core 33 | 15 . 18 Treads 331 | 105 133 93 Legs . | . . . Wheels 101 | . . 101 Hover . | . . . Flight . | . . . Fastest Speed 50 | 50 160 115 Average Speed 159 | 146 160 166 Slowest Speed 500 | 160 160 500 Overloaded Moves . | . . . Propulsion Burnouts . | . . . Robots Hopped . | . . . Potential Cave-ins . | . . . Cave-ins Triggered . | . . . Exploration Rate (%) 16 | 5 25 19 Regions Visited 2 Branch Regions 1 Pre-discovered Areas . | . . . Known Exits Taken . | . . . Unknown Exits Taken 2 | 1 1 . Scrap Searched . | . . . Spaces Dug . | . . . Terrain Destroyed . | . . . Melee . | . . . Projectile . | . . . AOE . | . . . Terrain Rammed . | . . . Walls Destroyed . | . . . Machines Disabled . | . . . Actions | -11 -10 -10 --------- Run | Yrd Mat Sub Total 574 | 143 158 273 Wait 18 | . 13 5 Move 463 | 119 132 212 Hop . | . . . Pick Up 4 | 4 . . Fast Attach 9 | 7 . 2 Attach 6 | . . 6 Detach . | . . . Swap 4 | 2 1 1 Drop 1 | . 1 . Fire 66 | 11 9 46 Melee . | . . . Ram . | . . . Kick . | . . . Crush 3 | . 2 1 Escape Stasis . | . . . Rewire . | . . . Trap . | . . . Miscellaneous . | . . . Route ------- -11/Scrapyard -10/Materials (discovered 2 exits: [*Min] / [*Sub]) -10/Subcaves (discovered 2 exits: [*Mat x2]) History --------- Turn | Location | Event 4 | -11/Scrapyard | Discovered new exit (range 16) 226 | -11/Scrapyard | Entered Materials 303 | -10/Materials | Build established: Mutant 350 | -10/Materials | Discovered new exit (range 8) 470 | -10/Materials | Discovered new exit (range 8) 483 | -10/Materials | Entered Subcaves 484 | -10/Subcaves | Approached by a straggling Scientist 530 | -10/Subcaves | Discovered new exit (range 10) 725 | -10/Subcaves | Core integrity fell below 50% 757 | -10/Subcaves | Discovered new exit (range 14) 769 | -10/Subcaves | Lost 8 parts (1p3n1u3w) 873 | -10/Subcaves | Core integrity fell below 20% 970 | -10/Subcaves | Destroyed by NS-NX0(R) with Subdweller Laser Last Messages --------------- 00764_ Acquired 13 matter. 00848_ Triggered Piercing Trap. 00848_ Spikes shoot up from the floor. 00848_ Critical hit (Impale). 00861_ Triggered Shrapnel Trap. 00861_ An expanding cloud of shrapnel blasts out in all directions. 00861_ Lgt. Ion Engine destroyed. 00866_ Com. Wheel destroyed. 00873_ WL-LN1(R) destroyed. 00874_ System corrupted: IFF burst signal emitted. 00889_ System corrupted: Energy discharge (-33). 00892_ Subatomizers dissect the Sub. Power Source. 00898_ Acquired Sub. Power Source. 00903_ Subatomizers dissect the Disposable Heat Sink. 00939_ Triggered Piercing Trap. 00939_ Spikes shoot up from the floor. 00939_ Critical hit (Impale). 00940_ Subatomizers dissect the Disposable Heat Sink. 00966_ Lgt. Assault Rifle destroyed. 00969_ X8R9A7ZGUMFDLJRJJ47BXS3JOQ61ZT,LV Map ----- +----------------------------------------------------+ | ?????????????????????????????????????????????????? | | ?????????????????????????????????????????????????? | | ?????????????????????????????????????????????????? | | ?????????????????????????????????????????????????? | | ?????????????????????????????????????????????????? | | ?????????????????????????????????????????????????? | | ?????????????????????????????????????????????????? | | ?????????????????????????????????????????????????? | | ?????????????????????????????????????????????????? | | ?????? ??????????????????????????????????????????? | | ????? ?????????????#???????????????????????????? | | ????## ??????????? ???????????????????????????? | | ????? ?????????? R ???????????????????????????? | | ????## #??######? ????????# ?????????????????? | | ????# ### #?? R ##??????#"#?????????#??????? | | ????# ## ##?# #??????#"#????????"##?????? | | ????# #?# #?? ##?????# "#???????" #?????? | | ????# ##?# #### #???### "##???? ??????? | | ?????# #### # ????# "##??? #???????? | | ??????# ## # ##????# ""^### #???????? | | ???????# ## #?????#^^ # # #???????? | | ???????# ##????#^ " #???????? | | ?####### ## ##??## !" #????????? | | ?# ## #### ####" &%#" #????????? | | ?# #??### # ; ##??#????????? | | ?## ##????# ## @ ##???????????? | | ??## ##???# ### ##??????????? | | ?### #????## #?# ; ##?????????? | | ## #?????#### ##?## ##;;;;; ##????????? | | # ######????????###???############## ##???????? | | ##????????????????????????????????## #???????? | | #?????????????????????????????????## #???????? | | #?????????????????????????????????# ##???????? | | # #?????????????????????????????????# ##????????? | | ## #?????????????????????????????????###?????????? | | ?###?????????????????????????????????????????????? | | ?????????????????????????????????????????????????? | | ?????????????????????????????????????????????????? | | ?????????????????????????????????????????????????? | | ?????????????????????????????????????????????????? | | ?????????????????????????????????????????????????? | | ?????????????????????????????????????????????????? | | ?????????????????????????????????????????????????? | | ?????????????????????????????????????????????????? | | ?????????????????????????????????????????????????? | | ?????????????????????????????????????????????????? | | ?????????????????????????????????????????????????? | | ?????????????????????????????????????????????????? | | ?????????????????????????????????????????????????? | | ?????????????????????????????????????????????????? | +----------------------------------------------------+ Best States ------------- Heat Dissipation 25 Energy Generation 15 Energy Capacity 250 Matter Stores 300 Matter Capacity 300 Sight Range 16 Terrain Scan Density 10 Evasion (%) 50 Recoil Reduction 2 Item Schematics ----------------- None Robot Schematics ------------------ None Fabricated ------------ Nothing Repaired ---------- Nothing Alien Tech Used ----------------- None Achievements -------------- None Challenges ------------ None Game ------ Seed WarlordImprinterWell Manual? 0 Play Time 00:06:50 Cumulative 101.7 hours Start 2025.05.19 @ 20:14:30 End 2025.05.19 @ 20:21:53 Sessions 1 Manual Loads 0 Difficulty Rogue Special Mode None Game No. 264 Rogue 264 Adventurer 0 Explorer 0 Win Type - Total 2 Types 2/0/0/0/0/0/0/0/0/0 Lore% 48 Gallery% 49 Achievement% 41 Wizard Run 0 Options --------- Layout 0 ASCII 0 Keyboard 0 Movement Numpad Keybinds 0 Fullscreen 2 Font 18/Terminus Map View 76x50 Zoom Use 0% Tactical HUD 1 Map Filters NONE Filters NONE Steam 1 RUN: 64010660-f125-479e-aca0-f270431ddeff